bitfinex/quotes_SOLUSD_20250517
["timestamp","ask_amount","ask_price","bid_price","bid_amount"]
[1747443829803,18.25042994,166.35,166.27,23.3]
[1747443829971,12.23885504,166.32,166.27,6.01420622]
[1747443830178,12.23885504,166.33,166.27,6.01420622]
[1747443830580,30.9,166.36,166.27,6.01420622]
[1747443830786,67.98921214,166.38,166.27,6.01420622]
[1747443830981,44.24921214,166.38,166.27,6.01420622]
[1747443831379,12.23885504,166.37,166.27,6.01420622]
[1747443831792,12.23885504,166.35,166.27,6.01420622]
[1747443833279,18.25043407,166.35,166.27,6.01420622]
[1747443834405,12.23885504,166.35,166.27,21.04999138]
[1747443834706,12.23885504,166.36,166.27,21.04999138]
[1747443835207,6.0114217,166.35,166.27,21.04999138]
[1747443835801,18.25027674,166.35,166.27,21.04999138]
[1747443836311,18.25027674,166.35,166.27,6.01420622]
[1747443836484,12.23885504,166.34,166.27,6.01420622]
[1747443837205,12.23885504,166.3,166.25,6.01503759]
[1747443837518,12.23885504,166.31,166.25,6.01503759]
[1747443837721,12.23885504,166.32,166.25,6.01503759]
[1747443837927,12.23885504,166.33,166.25,6.01503759]
[1747443838692,18.25109568,166.33,166.25,15.03759398]
[1747443839117,18.25070393,166.34,166.25,15.03759398]
[1747443839424,6.01184889,166.34,166.25,15.03759398]
[1747443839725,18.25070393,166.34,166.25,15.03759398]
[1747443840294,18.25070393,166.34,166.25,21.05263157]
[1747443840691,26.0,166.35,166.25,21.05263157]
[1747443840928,69.13885504,166.37,166.25,21.05263157]
[1747443841096,56.9,166.37,166.26,23.26]
[1747443841302,26.0,166.37,166.27,18.64964886]
[1747443841516,18.64964886,166.41,166.27,44.64964886]
[1747443841723,38.23885504,166.4,166.27,179.34964886]
[1747443841923,12.23885504,166.4,166.27,179.34964886]
[1747443842238,12.23885504,166.41,166.3,26.0]
[1747443842432,55.55827475,166.43,166.31,21.04503637]
[1747443842602,44.24748093,166.43,166.31,155.74503637]
[1747443843528,44.24748093,166.43,166.33,21.04250585]
[1747443843827,43.13885504,166.46,166.36,26.0]
[1747443844024,38.23885504,166.47,166.36,26.0]
[1747443845125,18.24630427,166.46,166.37,6.01069904]
[1747443845321,6.00744923,166.46,166.37,6.01069904]
[1747443845627,44.24601789,166.47,166.37,21.03744665]
[1747443847918,44.24601789,166.47,166.36,134.7]
[1747443847919,12.23885504,166.42,166.36,140.71102424]
[1747443848109,12.23885504,166.42,166.34,6.01178309]
[1747443848697,12.23885504,166.41,166.33,28.99205966]
[1747443849209,12.23885504,166.42,166.33,28.99205966]
[1747443850131,12.23885504,166.42,166.33,44.02242098]
[1747443850317,12.23885504,166.44,166.33,44.02242098]
[1747443850503,44.2467363,166.45,166.33,44.02242098]
[1747443851128,32.00788126,166.45,166.33,44.02242098]
[1747443851311,26.0,166.45,166.34,18.64964886]
[1747443851511,26.0,166.45,166.34,153.34964886]
[1747443851817,18.24620766,166.47,166.37,26.0]
[1747443852129,6.00735262,166.47,166.38,6.01033778]
[1747443852513,18.24620766,166.47,166.38,6.01033778]
[1747443853102,12.23885504,166.46,166.38,6.01033778]
[1747443854028,12.23885504,166.45,166.36,6.01078644]
[1747443854227,6.00817111,166.44,166.36,6.01078644]
[1747443855312,18.64964886,166.46,166.36,6.01078644]
[1747443855508,12.23885504,166.45,166.36,6.01078644]
[1747443856938,18.24702615,166.44,166.33,6.01214453]
[1747443857136,12.23885504,166.41,166.33,6.01214453]
[1747443858133,6.00961538,166.4,166.33,6.01214453]
[1747443861027,6.00961538,166.4,166.32,1.5922]
[1747443861028,18.24847042,166.4,166.32,1.5922]
[1747443861217,18.24847042,166.4,166.32,7.60461503]
[1747443861419,12.23885504,166.37,166.28,136.2419]
[1747443861640,12.23885504,166.36,166.28,1.5419]
[1747443861813,12.23885504,166.36,166.28,7.55580962]
[1747443862014,12.23885504,166.33,166.25,134.7]
[1747443862535,12.23885504,166.33,166.24,7.74546058]
[1747443862536,12.23885504,166.31,166.24,7.74546058]
[1747443862928,12.23885504,166.31,166.24,13.76081335]
[1747443863115,18.25197263,166.31,166.24,13.76081335]
[1747443863442,6.01261306,166.32,166.25,0.11]
[1747443863624,26.0,166.33,166.25,0.11]
[1747443863817,35.61885504,166.36,166.25,160.81]
[1747443864018,12.23885504,166.36,166.25,160.81]
[1747443864218,44.24959676,166.37,166.27,8.1544]
[1747443864641,18.24928655,166.38,166.27,8.1544]
[1747443865543,18.24928655,166.38,166.28,6.01395236]
[1747443866141,36.89893541,166.38,166.28,6.01395236]
[1747443866347,12.23885504,166.36,166.28,6.01395236]
[1747443866549,12.23885504,166.35,166.28,6.01395236]
[1747443866924,12.23885504,166.36,166.28,6.01395236]
[1747443867122,6.01043151,166.38,166.28,6.01395236]
[1747443867320,6.01043151,166.38,166.28,21.04883328]
[1747443867632,18.24928655,166.38,166.28,21.04883328]
[1747443867824,18.24928655,166.38,166.28,6.01395236]
[1747443867825,12.23885504,166.37,166.28,6.01395236]
[1747443868228,12.23885504,166.35,166.27,14.16864297]
[1747443868525,12.23885504,166.31,166.24,13.76085885]
[1747443868935,12.23885504,166.3,166.24,7.74546058]
[1747443869136,12.23885504,166.3,166.23,13.77178286]
[1747443869937,26.0,166.33,166.23,1.5897]
[1747443869938,18.25244575,166.29,166.23,1.5897]
[1747443870427,26.0,166.33,166.23,7.60532374]
[1747443870650,32.01222403,166.33,166.23,7.60532374]
[1747443870828,44.25107907,166.33,166.23,7.60532374]
[1747443871030,32.01222403,166.33,166.23,7.60532374]
[1747443871348,26.0,166.33,166.23,22.64472697]
[1747443871657,44.25104603,166.33,166.23,22.64472697]
[1747443872152,12.23885504,166.29,166.23,1.5897]
[1747443872668,12.23885504,166.29,166.15,164.79238342]
[1747443872669,12.23885504,166.24,166.15,7.7561]
[1747443872848,12.23885504,166.24,166.16,0.11]
[1747443873050,38.23885504,166.28,166.16,21.17403465]
[1747443873240,45.95145504,166.3,166.19,26.0]
[1747443873558,12.23885504,166.29,166.19,26.0]
[1747443873729,12.23885504,166.28,166.19,26.0]
[1747443873926,12.23885504,166.28,166.2,6.01684717]
[1747443874453,12.23885504,166.28,166.17,6.01793344]
[1747443874454,26.0,166.25,166.17,6.01793344]
[1747443874927,49.15282334,166.28,166.17,32.01793344]
[1747443875132,26.0,166.31,166.19,1.5897]
[1747443875336,18.25144632,166.32,166.22,6.1664]
[1747443875642,22.52,166.34,166.23,1.5897]
[1747443875846,34.75885504,166.34,166.23,136.2897]
[1747443876055,28.53206722,166.34,166.24,6.01539942]
[1747443876437,56.27648553,166.37,166.24,6.01539942]
[1747443876438,1.3285,166.38,166.24,204.27389797]
[1747443876659,7.33911498,166.38,166.28,26.0]
[1747443876885,6.01061498,166.38,166.28,26.0]
[1747443877366,12.23885504,166.37,166.28,26.0]
[1747443877745,6.01061498,166.38,166.28,26.0]
[1747443878050,18.24947002,166.38,166.29,6.01359071]
[1747443878249,12.23885504,166.36,166.27,134.7]
[1747443878449,12.23885504,166.36,166.27,140.71425639]
[1747443878788,38.23885504,166.37,166.27,140.71425639]
[1747443879268,12.23885504,166.36,166.25,71.16]
[1747443879468,12.23885504,166.31,166.25,45.16]
[1747443879644,12.23885504,166.32,166.25,6.01495862]
[1747443880043,6.01214453,166.33,166.24,6.01539942]
[1747443880245,38.23885504,166.35,166.24,21.05389797]
[1747443880545,32.01106035,166.36,166.25,26.0]
[1747443880750,44.24991539,166.36,166.25,26.0]
[1747443881145,32.01106035,166.36,166.25,26.0]
[1747443881348,12.23885504,166.35,166.25,26.0]
[1747443881748,44.24991539,166.36,166.26,6.0146758]
[1747443881954,12.23885504,166.35,166.26,6.0146758]
[1747443882157,32.01106035,166.36,166.26,21.05136532]
[1747443882158,44.24991539,166.36,166.26,21.05136532]
[1747443882336,32.01106035,166.36,166.26,21.05136532]
[1747443882546,32.01106035,166.36,166.26,43.65136532]
[1747443882751,26.0,166.36,166.26,66.39136532]
[1747443883059,32.01113672,166.36,166.26,66.39136532]
[1747443883581,26.0,166.36,166.26,66.39136532]
[1747443883760,40.94963454,166.37,166.26,66.39136532]
[1747443883761,22.7,166.37,166.26,66.39136532]
[1747443883964,26.0,166.38,166.28,6.5051]
[1747443884778,32.01034725,166.38,166.29,6.01359071]
[1747443885166,12.23885504,166.36,166.28,12.51902405]
[1747443885476,12.23885504,166.34,166.27,142.24923344]
[1747443885682,12.23885504,166.34,166.27,7.54923344]
[1747443885865,12.23885504,166.35,166.27,7.54923344]
[1747443886061,18.64964886,166.37,166.27,7.54923344]
[1747443886265,12.23885504,166.35,166.27,7.54923344]
[1747443886470,12.23885504,166.37,166.27,7.54923344]
[1747443886853,26.0,166.38,166.27,22.5850186]
[1747443887055,38.23885504,166.38,166.27,22.5850186]
[1747443887781,6.01080364,166.37,166.27,22.5850186]
[1747443887983,12.23885504,166.35,166.27,7.54923344]
[1747443889285,18.25052107,166.35,166.27,7.54923344]
[1747443890167,6.01106035,166.36,166.27,7.54923344]
[1747443890358,12.23885504,166.35,166.27,7.54923344]
[1747443890562,12.23885504,166.36,166.27,22.5850186]
[1747443890784,6.01079964,166.37,166.27,22.5850186]
[1747443891484,26.0,166.38,166.28,22.54]
[1747443891690,36.9095765,166.41,166.28,48.54]
[1747443891991,62.9095765,166.41,166.29,6.1917]
[1747443892188,36.9095765,166.41,166.33,6.01214453]
[1747443892488,12.23885504,166.38,166.29,32.1917]
[1747443892974,12.23885504,166.39,166.29,32.1917]
[1747443893673,6.01033778,166.38,166.3,6.0132291]
[1747443893859,18.24919282,166.38,166.29,38.20519506]
[1747443894061,12.23885504,166.36,166.28,22.54]
[1747443894262,12.23885504,166.35,166.28,22.54]
[1747443895066,12.23885504,166.32,166.25,6.1917]
[1747443895868,6.01251691,166.32,166.25,12.20669978]
[1747443898059,29.6082,166.36,166.25,12.20669978]
[1747443898384,22.96,166.36,166.25,12.20669978]
[1747443898688,22.96,166.36,166.25,27.24429376]
[1747443898887,22.96,166.36,166.26,22.92]
[1747443899274,18.24919282,166.38,166.27,26.0]
[1747443899571,18.24919282,166.38,166.28,6.01395236]
[1747443900490,12.23885504,166.36,166.27,6.0142742]
[1747443901280,18.24919282,166.38,166.27,21.05005936]
[1747443901466,6.01033778,166.38,166.27,21.05005936]
[1747443901785,18.24919282,166.38,166.27,21.05005936]
[1747443901996,32.0100667,166.39,166.28,1.564]
[1747443902381,32.0100667,166.39,166.28,136.264]
[1747443903187,32.0100667,166.39,166.28,162.264]
[1747443903406,12.23885504,166.38,166.29,6.01359071]
[1747443903708,44.24892174,166.39,166.29,6.01359071]
[1747443904373,32.0100667,166.39,166.29,140.71359071]
[1747443904699,32.0100667,166.39,166.29,163.45359071]
[1747443905869,44.24892174,166.39,166.29,163.45359071]
[1747443906070,12.23885504,166.38,166.29,163.45359071]
[1747443906500,32.0100667,166.39,166.29,163.45359071]
[1747443906668,12.23885504,166.38,166.29,163.45359071]
[1747443906989,6.01106035,166.36,166.29,163.45359071]
[1747443907386,6.01106035,166.36,166.29,140.71359071]
[1747443908294,6.01106035,166.36,166.29,6.01359071]
[1747443909094,12.23885504,166.34,166.28,1.564]
[1747443909276,12.23885504,166.31,166.24,1.5913]
[1747443909865,12.23885504,166.3,166.24,1.5913]
[1747443910778,12.23885504,166.28,166.21,6.522]
[1747443911093,6.01431406,166.27,166.22,0.11]
[1747443911302,6.01431406,166.27,166.21,6.522]
[1747443911482,18.2531691,166.27,166.2,1.5913]
[1747443911993,6.01431406,166.27,166.2,1.5913]
[1747443912795,6.01431406,166.27,166.2,7.60807787]
[1747443913574,6.01359071,166.29,166.2,7.60807787]
[1747443913778,26.0,166.31,166.2,168.30807787]
[1747443914308,22.48,166.33,166.23,18.64964886]
[1747443914622,22.48,166.33,166.23,71.36]
[1747443915107,12.23885504,166.3,166.22,6.6275]
[1747443915404,12.23885504,166.29,166.22,6.6275]
[1747443915706,6.01395236,166.28,166.22,6.6275]
[1747443915891,6.01345094,166.3,166.22,12.64356388]
[1747443916084,32.01283799,166.32,166.22,12.64356388]
[1747443916383,28.4922717,166.33,166.23,26.0]
[1747443917299,28.4922717,166.33,166.24,6.01539942]
[1747443917504,40.73112674,166.33,166.24,6.01539942]
[1747443917806,40.73112674,166.33,166.23,166.71569317]
[1747443918010,12.23885504,166.32,166.23,140.71569317]
[1747443918188,38.23885504,166.31,166.23,134.7]
[1747443918506,12.23885504,166.28,166.23,134.7]
[1747443918811,12.23885504,166.3,166.2,30.10785652]
[1747443919303,6.01359071,166.29,166.2,30.10785652]
[1747443920912,18.25244575,166.29,166.2,7.60785652]
[1747443922007,24.66287796,166.3,166.2,7.60785652]
[1747443922221,18.25208414,166.3,166.2,7.60785652]
[1747443922389,6.0132291,166.3,166.2,7.60785652]
[1747443922595,32.01297203,166.31,166.2,22.64997445]
[1747443922785,1.3285,166.39,166.2,22.64997445]
[1747443922786,6.01260815,166.32,166.21,26.0]
[1747443922986,6.01260815,166.32,166.21,160.7]
[1747443923186,12.23885504,166.31,166.21,160.7]
[1747443923421,12.23885504,166.29,166.21,134.7]
[1747443923788,44.64964886,166.29,166.2,1.5913]
[1747443924027,12.23885504,166.24,166.18,6.3284]
[1747443924186,12.23885504,166.24,166.17,6.0178811]
[1747443924581,22.46,166.27,166.17,6.0178811]
[1747443924805,12.23885504,166.24,166.17,6.0178811]
[1747443925026,6.01576129,166.23,166.17,6.0178811]
[1747443925194,6.01576129,166.23,166.16,1.5496]
[1747443925195,12.23885504,166.22,166.16,1.5496]
[1747443925527,12.23885504,166.25,166.16,7.56787575]
[1747443925827,56.9,166.26,166.16,22.61361479]
[1747443926220,62.91471285,166.26,166.16,22.61361479]
[1747443926820,26.0,166.26,166.16,22.61361479]
[1747443927197,12.23885504,166.24,166.16,7.56787575]
[1747443927607,26.0,166.26,166.16,22.61361479]
[1747443927797,38.23885504,166.26,166.16,22.61361479]
[1747443928004,44.25357552,166.26,166.16,22.61361479]
[1747443928390,32.01472048,166.26,166.16,22.61361479]
[1747443928624,44.25357552,166.26,166.16,22.61361479]
[1747443929130,12.23885504,166.22,166.16,1.5496]
[1747443929925,12.23885504,166.22,166.15,6.01860975]
[1747443929926,12.23885504,166.19,166.14,12.37757237]
[1747443930232,12.23885504,166.16,166.14,12.37757237]
[1747443931620,18.25740852,166.16,166.14,12.37757237]
[1747443932295,12.23885504,166.15,166.14,12.37757237]
[1747443933907,12.23885504,166.16,166.14,12.37757237]
[1747443934611,12.23885504,166.15,166.14,12.37757237]
[1747443934817,12.23885504,166.16,166.09,6.02076047]
[1747443935011,6.01793344,166.17,166.09,6.02076047]
[1747443935208,12.23885504,166.16,166.09,6.02076047]
[1747443935729,6.01865783,166.15,166.09,6.02076047]
[1747443936102,6.01840294,166.16,166.09,6.02076047]
[1747443936922,18.25725798,166.16,166.09,6.02076047]
[1747443937126,18.25725798,166.16,166.08,7.57580065]
[1747443937324,12.23885504,166.13,166.08,1.5547]
[1747443937531,12.23885504,166.13,166.05,12.55286581]
[1747443937824,12.23885504,166.12,166.05,12.55286581]
[1747443938429,6.02010715,166.11,166.05,12.55286581]
[1747443938611,6.02010715,166.11,166.05,6.5306]
[1747443938925,6.02010715,166.11,166.01,12.52018075]
[1747443938926,12.23885504,166.08,166.01,12.52018075]
[1747443939095,26.0,166.09,166.01,6.4965]
[1747443939299,12.23885504,166.06,166.0,1.6]
[1747443939499,12.23885504,166.05,166.0,1.6]
[1747443939715,26.0,166.06,165.98,12.32885597]
[1747443939927,38.23885504,166.06,165.98,12.32885597]
[1747443940126,26.0,166.05,165.98,12.32885597]
[1747443940300,32.02243209,166.05,165.98,18.35364374]
[1747443940624,44.26128713,166.05,165.98,18.35364374]
[1747443940935,12.23885504,166.04,165.98,18.35364374]
[1747443941129,44.26128713,166.05,165.98,18.35364374]
[1747443942410,12.23885504,166.02,165.98,12.32885597]
[1747443942612,12.23885504,166.02,165.96,6.02523667]
[1747443943143,12.23885504,166.01,165.93,8.12]
[1747443943437,12.23885504,166.02,165.93,8.12]
[1747443943647,12.23885504,166.03,165.94,6.02623057]
[1747443943934,30.9,166.04,165.94,6.02623057]
[1747443944143,43.13885504,166.04,165.94,6.02623057]
[1747443944633,12.23885504,166.03,165.94,21.09191696]
[1747443945132,12.23885504,166.03,165.94,6.02623057]
[1747443945311,36.92279512,166.04,165.94,6.02623057]
[1747443945513,12.23885504,166.02,165.94,6.02623057]
[1747443946362,6.0232014,166.03,165.94,6.02623057]
[1747443946630,37.4552171,166.06,165.94,166.72623057]
[1747443946631,22.4,166.06,165.94,166.72623057]
[1747443946838,32.2285,166.08,165.94,166.72623057]
[1747443946839,65.17885504,166.08,165.95,41.04964886]
[1747443947024,52.94,166.08,165.97,18.64964886]
[1747443947335,78.94,166.08,165.97,18.64964886]
[1747443947536,97.20013222,166.08,165.96,22.04]
[1747443948252,18.26068922,166.07,165.97,6.02518527]
[1747443949018,12.23885504,166.05,165.97,6.02518527]
[1747443949432,12.23885504,166.04,165.97,6.02518527]
[1747443949614,12.23885504,166.01,165.94,6.02627455]
[1747443950249,26.0,166.05,165.94,6.02627455]
[1747443950449,26.0,166.05,165.95,18.64964886]
[1747443950648,26.0,166.05,165.94,21.09196094]
[1747443950649,12.23885504,166.03,165.94,21.09196094]
[1747443950832,12.23885504,166.02,165.94,6.02627455]
[1747443951156,12.23885504,166.01,165.94,6.02627455]
[1747443951527,12.23885504,166.0,165.94,6.02627455]
[1747443951725,12.23885504,165.98,165.89,9.35549824]
[1747443952232,18.26371796,165.98,165.9,6.02772754]
[1747443952439,12.23885504,165.97,165.9,6.02772754]
[1747443952626,6.02486292,165.98,165.9,6.02772754]
[1747443952954,66.68964886,166.02,165.9,47.0970464]
[1747443953136,12.23885504,166.01,165.9,47.0970464]
[1747443953875,18.26258855,166.01,165.9,47.0970464]
[1747443954054,18.26331434,165.99,165.9,32.02772754]
[1747443954427,6.0244593,165.99,165.9,32.02772754]
[1747443954935,44.26331434,165.99,165.9,6.02772754]
[1747443955540,26.0,165.99,165.9,6.02772754]
[1747443955743,22.04,166.02,165.93,26.0]
[1747443955957,22.04,166.02,165.95,6.02591141]
[1747443956167,12.23885504,166.07,165.96,18.64964886]
[1747443956451,26.0,166.07,165.97,7.8145]
[1747443956653,6.02165201,166.07,165.97,7.8145]
[1747443957236,32.02165201,166.07,165.97,7.8145]
[1747443957438,22.04,166.09,166.0,26.0]
[1747443957963,12.23885504,166.08,166.0,26.0]
[1747443958163,6.02155717,166.07,166.0,26.0]
[1747443958334,6.02155717,166.07,165.99,6.0244593]
[1747443958736,22.04,166.09,165.99,6.0244593]
[1747443959280,40.29982538,166.09,166.0,26.0]
[1747443959461,28.06097034,166.09,166.0,26.0]
[1747443959662,6.02097034,166.09,166.0,26.0]
[1747443960168,12.23885504,166.08,165.99,6.0244593]
[1747443960347,6.02097034,166.09,165.99,6.0244593]
[1747443960546,6.0205365,166.1,165.99,21.08560756]
[1747443961870,18.25939154,166.1,165.99,21.08560756]
[1747443962042,6.0205365,166.1,165.99,21.08560756]
[1747443962664,6.02015343,166.11,166.02,26.0]
[1747443962861,59.513641,166.16,166.06,26.0]
[1747443962862,22.24,166.15,166.06,26.0]
[1747443963163,47.80510317,166.17,166.06,26.0]
[1747443963334,41.78706348,166.17,166.07,18.64964886]
[1747443963540,47.80505394,166.17,166.07,18.64964886]
[1747443964270,41.78706348,166.17,166.07,18.64964886]
[1747443964662,41.78706348,166.17,166.08,6.0211946]
[1747443965060,41.78706348,166.17,166.09,18.64964886]
[1747443965276,41.78706348,166.17,166.1,1.5235]
[1747443965453,41.78706348,166.17,166.1,158.2235]
[1747443965656,41.78706348,166.17,166.11,18.64964886]
[1747443965868,12.23885504,166.22,166.11,18.64964886]
[1747443966183,12.23885504,166.21,166.11,153.34964886]
[1747443966761,6.01684717,166.2,166.12,6.01974476]
[1747443966962,12.23885504,166.19,166.11,134.7]
[1747443967377,12.23885504,166.16,166.07,26.0]
[1747443967564,12.23885504,166.15,166.07,26.0]
[1747443967960,12.23885504,166.14,166.06,1.5259]
[1747443968159,12.23885504,166.15,166.06,1.5259]
[1747443968482,22.16,166.17,166.07,18.64964886]
[1747443968659,22.16,166.17,166.09,26.0]
[1747443968975,6.01829561,166.16,166.09,26.0]
[1747443969481,6.01829561,166.16,166.08,6.02109413]
[1747443969659,12.23885504,166.15,166.07,26.0]
[1747443970478,33.30288969,166.16,166.07,26.0]
[1747443971081,12.23885504,166.15,166.07,26.0]
[1747443971272,12.23885504,166.14,166.06,1.5259]
[1747443972884,6.01829561,166.16,166.08,18.64964886]
[1747443973388,6.01648516,166.21,166.1,44.64964886]
[1747443973560,6.01648516,166.21,166.12,18.64964886]
[1747443974693,6.01612321,166.22,166.13,32.01938241]
[1747443974990,27.27703804,166.25,166.14,26.37984886]
[1747443975157,18.25455552,166.24,166.14,26.37984886]
[1747443975358,12.23885504,166.23,166.14,142.4302]
[1747443976484,6.01612321,166.22,166.14,148.44895843]
[1747443979794,6.01612321,166.22,166.14,7.7302]
[1747443980096,18.25497825,166.22,166.14,7.7302]
[1747443980268,6.01612321,166.22,166.14,13.74906878]
[1747443980671,12.23885504,166.22,166.14,7.7302]
[1747443981168,18.25472408,166.23,166.14,13.7491089]
[1747443981867,12.23885504,166.15,166.06,8.2774]
[1747443982074,26.0,166.14,166.04,33.08025999]
[1747443982274,26.0,166.14,166.02,6.6123]
[1747443982275,12.23885504,166.11,166.02,6.6123]
[1747443983578,6.02046959,166.1,166.02,6.6123]
[1747443984294,18.25932463,166.1,166.02,6.6123]
[1747443984680,18.64964886,166.09,165.97,6.6123]
[1747443984877,12.23885504,166.07,165.97,6.6123]
[1747443985079,25.68,166.09,165.97,6.6123]
[1747443985283,12.23885504,166.06,165.97,6.6123]
[1747443985485,12.23885504,166.07,165.97,38.63738861]
[1747443985896,6.0211946,166.08,165.97,38.63738861]
[1747443986199,12.23885504,166.07,165.97,38.63738861]
[1747443986501,6.0211946,166.08,165.97,38.63738861]
[1747443986702,25.68,166.09,165.98,18.64964886]
[1747443986999,37.91885504,166.09,165.98,18.64964886]
[1747443987181,25.68,166.09,165.98,18.64964886]
[1747443987498,12.23885504,166.08,165.98,18.64964886]
[1747443987788,12.23885504,166.07,165.98,24.67418164]
[1747443988998,6.02191978,166.06,165.98,24.67418164]
[1747443989209,6.02154119,166.08,165.98,24.67418164]
[1747443989497,25.68,166.09,165.98,159.37418164]
[1747443989701,43.93969763,166.09,165.98,159.37418164]
[1747443989902,12.23885504,166.06,165.98,134.7]
[1747443990474,12.23885504,166.04,165.98,134.7]
[1747443990674,12.23885504,166.03,165.96,26.7651]
[1747443990877,18.26222571,166.02,165.96,26.7651]
[1747443991086,18.26222571,166.02,165.96,1.6651]
[1747443991296,6.02337067,166.02,165.96,1.6651]
[1747443992497,26.0,166.06,165.97,18.64964886]
[1747443992689,18.25968711,166.09,165.97,153.34964886]
[1747443992892,6.02083207,166.09,166.01,6.02373351]
[1747443993079,6.02083207,166.09,166.02,6.2405]
[1747443993989,6.02046959,166.1,166.02,12.263595]
[1747443994574,18.25823745,166.13,166.02,12.263595]
[1747443994803,18.25823745,166.13,166.02,146.963595]
[1747443994985,44.25823745,166.13,166.02,146.963595]
[1747443995374,12.23885504,166.12,166.02,146.963595]
[1747443995774,44.25823745,166.13,166.02,146.963595]
[1747443996781,44.25823745,166.13,166.04,6.02264514]
[1747443996980,32.01938241,166.13,166.04,6.02264514]
[1747443997908,26.04,166.17,166.05,18.64964886]
[1747443998203,12.23885504,166.16,166.05,179.38964886]
[1747443998504,12.23885504,166.15,166.05,160.74]
[1747443998707,12.23885504,166.14,166.05,160.74]
[1747443998910,6.01938241,166.13,166.05,166.76202293]
[1747443999087,18.25823745,166.13,166.05,160.74]
[1747443999598,6.01938241,166.13,166.05,160.74]
[1747443999901,6.01938241,166.13,166.05,166.7621325]
[1747444000908,18.25787514,166.14,166.05,166.7621325]
[1747444001214,6.01869965,166.15,166.05,181.81783861]
[1747444001495,6.01869965,166.15,166.05,166.7621325]
[1747444001496,18.25755469,166.15,166.05,166.7621325]
[1747444001886,6.01869965,166.15,166.05,166.7621325]
[1747444002089,18.25755469,166.15,166.05,166.7621325]
[1747444002295,12.23885504,166.14,166.05,160.74]
[1747444002486,6.01869965,166.15,166.05,166.76224485]
[1747444002678,18.25755469,166.15,166.05,166.76224485]
[1747444002875,27.28549963,166.15,166.05,166.76224485]
[1747444003079,12.23885504,166.14,166.05,166.76224485]
[1747444003281,12.23885504,166.14,166.05,160.74]
[1747444003685,15.04664459,166.15,166.05,160.74]
[1747444003886,12.23885504,166.14,166.05,160.74]
[1747444004088,6.01829561,166.16,166.06,26.0]
[1747444004405,6.01829561,166.16,166.09,26.0]
[1747444004601,18.25715065,166.16,166.09,26.0]
[1747444005285,6.01829561,166.16,166.09,26.0]
[1747444005486,18.25715065,166.16,166.09,26.0]
[1747444005686,33.30288969,166.16,166.09,26.0]
[1747444006208,12.23885504,166.15,166.06,134.7]
[1747444006512,12.23885504,166.13,166.06,134.7]
[1747444007216,18.2585998,166.12,166.06,134.7]
[1747444007518,18.2585998,166.12,166.05,52.04]
[1747444008084,6.01974476,166.12,166.05,52.04]
[1747444008811,6.01974476,166.12,166.05,58.06219755]
[1747444010713,6.0190201,166.14,166.05,58.06219755]
[1747444010913,12.23885504,166.13,166.05,58.06219755]
[1747444011216,12.23885504,166.12,166.05,52.04]
[1747444011812,12.23885504,166.1,166.05,26.04]
[1747444012017,12.23885504,166.1,166.03,7.54466283]
[1747444012217,12.23885504,166.1,166.03,1.5217]
[1747444012808,6.02083207,166.09,166.03,1.5217]
[1747444012991,12.23885504,166.11,166.03,7.54469336]
[1747444013400,18.2585998,166.12,166.03,7.54469336]
[1747444014206,6.01974476,166.12,166.03,7.54469336]
[1747444014409,6.02046959,166.1,166.03,7.54469336]
[1747444015323,18.25932463,166.1,166.03,1.5217]
[1747444015507,18.25932463,166.1,166.03,7.54462594]
[1747444016001,6.02046959,166.1,166.03,7.54462594]
[1747444016204,18.25900357,166.11,166.03,7.54462594]
[1747444016521,6.01974476,166.12,166.03,142.24462594]
[1747444018325,6.462,166.16,166.06,26.0]
[1747444018326,6.01829561,166.16,166.06,26.0]
[1747444018538,12.23885504,166.15,166.06,26.0]
[1747444018718,12.23885504,166.14,166.06,26.0]
[1747444019230,12.23885504,166.13,166.03,157.30214566]
[1747444019520,18.64964886,166.15,166.04,26.0]
[1747444019700,12.23885504,166.14,166.04,26.0]
[1747444019895,6.01938241,166.13,166.05,6.02228244]
[1747444020920,12.23885504,166.12,166.04,26.0]
[1747444021218,12.23885504,166.1,166.03,27.5217]
[1747444021601,12.23885504,166.1,166.03,1.5217]
[1747444021808,12.23885504,166.09,166.03,1.5217]
[1747444022419,12.23885504,166.08,166.03,1.5217]
[1747444022734,12.23885504,166.07,166.0,6.02398683]
[1747444022938,12.23885504,166.07,165.99,27.6605]
[1747444022939,12.23885504,166.06,165.99,1.6205]
[1747444023105,12.23885504,166.03,165.95,7.64641141]
[1747444023298,12.23885504,166.03,165.95,142.34641141]
[1747444024134,26.0,166.05,165.95,136.3205]